bitfinex-derivatives/quotes_ETHF0:USTF0_20240907
["timestamp","ask_amount","ask_price","bid_price","bid_amount"]
[1725730227682,0.82222,2290.4,2290.1,0.43668]
[1725730230081,0.43664,2290.3,2290.1,0.43668]
[1725730230586,0.82223,2290.4,2290.2,0.43666]
[1725730230887,0.43664,2290.3,2290.1,0.43667]
[1725730231382,0.43664,2290.3,2290.0,0.43669]
[1725730231874,0.43664,2290.3,2290.1,0.43668]
[1725730232070,0.43665,2290.3,2290.1,0.43667]
[1725730232285,0.43665,2290.3,2290.0,0.43669]
[1725730232500,0.43673,2289.9,2289.7,0.43675]
[1725730232783,3.2078,2290.2,2289.6,0.82676]
[1725730232784,3.02,2290.1,2289.6,0.82676]
[1725730233086,0.43673,2289.9,2289.6,0.82676]
[1725730237281,0.43673,2289.9,2289.7,0.43676]
[1725730237478,3.02,2290.1,2289.6,0.39]
[1725730237786,3.5939,2290.2,2289.8,0.43673]
[1725730237787,0.43671,2290.0,2289.8,0.43673]
[1725730238786,0.43671,2290.0,2289.6,0.39]
[1725730238787,0.43669,2290.1,2289.9,0.80452]
[1725730240085,0.4367,2290.0,2289.9,0.3678]
[1725730240479,0.43672,2289.9,2289.7,0.43674]
[1725730240684,3.5939,2290.2,2289.6,0.82676]
[1725730240685,0.43674,2289.8,2289.6,0.82676]
[1725730241280,0.43673,2289.9,2289.6,0.82676]
[1725730241584,3.5939,2290.2,2289.8,0.43673]
[1725730241786,0.43669,2290.1,2289.9,0.43671]
[1725730241986,0.43671,2290.0,2289.8,0.43673]
[1725730242375,0.43672,2289.9,2289.7,0.43675]
[1725730242781,0.43671,2290.0,2289.8,0.43674]
[1725730243286,4.1117,2290.1,2289.6,3.64457]
[1725730243477,1.57653,2289.9,2289.5,0.21911367]
[1725730243782,0.80913,2289.9,2289.7,0.43675]
[1725730245991,0.80913,2289.9,2289.6,0.7652]
[1725730245992,0.43676,2289.7,2289.6,0.7652]
[1725730246591,0.43671,2290.0,2289.8,0.43672]
[1725730246981,0.43672,2289.9,2289.8,0.43672]
[1725730248592,0.43672,2289.9,2289.7,0.82134]
[1725730248890,0.43672,2289.9,2289.8,0.43674]
[1725730249294,0.43672,2289.9,2289.7,0.82134]
[1725730249678,0.43671,2290.0,2289.8,0.43673]
[1725730250786,0.43671,2290.0,2289.7,0.3846]
[1725730250787,0.43669,2290.1,2289.9,0.43672]
[1725730250994,0.43669,2290.1,2290.0,0.3919]
[1725730255791,0.43672,2290.0,2289.8,0.43672]
[1725730255996,0.43672,2290.0,2289.8,0.80702]
[1725730256186,0.43672,2289.9,2289.8,0.80702]
[1725730256591,0.43672,2289.9,2289.8,0.3703]
[1725730257590,0.43671,2290.0,2289.8,0.80704]
[1725730258184,0.43671,2290.0,2289.9,0.43672]
[1725730258385,0.43671,2290.0,2289.8,0.80702]
[1725730258593,0.43671,2290.0,2289.8,0.3703]
[1725730258791,0.43672,2289.9,2289.8,0.80703]
[1725730259099,0.43672,2289.9,2289.8,0.3703]
[1725730259691,0.43672,2289.9,2289.8,0.80704]
[1725730260602,0.43672,2289.9,2289.8,0.3703]
[1725730260792,0.43672,2289.9,2289.6,0.376]
[1725730260793,0.43676,2289.7,2289.6,0.376]
[1725730263201,0.3642,2289.9,2289.6,0.376]
[1725730263499,0.43672,2289.9,2289.7,0.43674]
[1725730263894,0.43672,2289.9,2289.8,0.3861]
[1725730264394,0.82889,2290.1,2289.8,0.82284]
[1725730264602,0.3922,2290.1,2289.9,0.3585]
[1725730264800,0.4367,2290.0,2289.9,0.3585]
[1725730265000,1.81333,2290.3,2290.1,0.43666]
[1725730265001,0.3621,2290.3,2290.1,0.43666]
[1725730265303,0.3621,2290.3,2290.1,0.43667]
[1725730265512,0.79874,2290.3,2290.2,0.3861]
[1725730266303,0.3621,2290.3,2290.2,0.3861]
[1725730266509,1.69662,2290.4,2290.2,0.3861]
[1725730266809,0.43664,2290.3,2290.2,0.3861]
[1725730268801,6.9945,2290.5,2290.0,0.3825]
[1725730269008,0.43666,2290.3,2290.0,0.81919]
[1725730270403,0.43663,2290.4,2290.1,0.43668]
[1725730271214,0.43664,2290.3,2290.1,0.43668]
[1725730272814,0.43664,2290.3,2290.0,3.5903]
[1725730272815,0.43666,2290.2,2290.0,0.81918]
[1725730273205,0.43665,2290.3,2290.1,0.43667]
[1725730273504,0.43664,2290.3,2290.1,0.43667]
[1725730273810,0.43663,2290.4,2290.2,0.43665]
[1725730275607,3.7867,2290.5,2290.0,1.52342425]
[1725730275909,3.2078,2290.6,2290.5,0.4366]
[1725730277319,3.2078,2290.6,2290.4,0.3796]
[1725730277526,3.2078,2290.6,2290.5,0.4366]
[1725730278715,3.2078,2290.6,2290.4,0.81622]
[1725730278716,3.64438,2290.6,2290.4,0.81622]
[1725730278920,3.2078,2290.6,2290.2,0.43665]
[1725730279121,0.81322,2290.5,2290.2,0.43665]
[1725730280518,0.43663,2290.4,2290.1,1.21577]
[1725730280708,3.3898,2290.4,2289.8,1.14092425]
[1725730280913,3.82643,2290.4,2290.2,0.43666]
[1725730281714,4.0499536,2290.4,2290.2,0.43666]
[1725730282017,3.6133236,2290.4,2290.2,0.43666]
[1725730282623,3.3898,2290.4,2290.2,0.43666]
[1725730284020,3.82643,2290.4,2290.2,0.43666]
[1725730287019,3.3898,2290.4,2290.3,0.43664]
[1725730287925,1.6298,2290.4,2290.3,0.43664]
[1725730288928,1.6298,2290.4,2290.2,0.43664]
[1725730289127,1.6298,2290.4,2289.9,2.25602425]
[1725730289128,1.6298,2290.4,2290.3,0.43664]
[1725730289430,1.6298,2290.4,2289.9,2.25602425]
[1725730289431,1.26,2290.6,2290.5,0.4366]
[1725730290514,1.69658,2290.6,2290.4,0.43661]
[1725730290930,0.4366,2290.5,2290.3,0.43663]
[1725730291320,0.4366,2290.5,2290.0,2.23266425]
[1725730291321,1.26,2290.6,2290.5,0.4366]
[1725730293323,1.69658,2290.6,2290.5,0.4366]
[1725730295228,1.69658,2290.6,2290.4,0.43661]
[1725730295534,1.69658,2290.6,2290.5,0.3609]
[1725730296931,1.69658,2290.6,2290.5,0.7975]
[1725730297537,1.26,2290.6,2290.5,0.7975]
[1725730298633,1.69658,2290.6,2290.5,0.3609]
[1725730299821,0.43661,2290.5,2290.3,0.43663]
[1725730300026,0.3853,2290.5,2290.4,0.43662]
[1725730301637,1.69659,2290.6,2290.5,0.4366]
[1725730302039,5.6256,2290.6,2290.5,0.4366]
[1725730302333,6.06218,2290.6,2290.5,0.4366]
[1725730302734,1.26,2290.6,2290.5,0.4366]
[1725730303329,1.69658,2290.6,2290.5,0.4366]
[1725730303728,1.26,2290.6,2290.5,0.4366]
[1725730304032,1.69658,2290.6,2290.5,0.4366]
[1725730305038,1.26,2290.6,2290.5,0.4366]
[1725730306343,1.69658,2290.6,2290.5,0.4366]
[1725730306733,1.26,2290.6,2290.5,0.4366]
[1725730311043,1.69658,2290.6,2290.4,0.43661]
[1725730311234,2.07628,2290.6,2290.4,0.43661]
[1725730311434,0.3671,2290.5,2290.4,0.43661]
[1725730314945,0.3797,2290.6,2290.5,0.4366]
[1725730315141,3.2078,2290.7,2290.5,0.4366]
[1725730315350,0.3707,2290.6,2290.5,0.4366]
[1725730315737,0.80728,2290.6,2290.5,0.4366]
[1725730316546,4.01508,2290.6,2290.5,0.4366]
[1725730317045,0.80728,2290.6,2290.5,0.4366]
[1725730317547,3.5785,2290.6,2290.5,0.4366]
[1725730318651,0.43662,2290.5,2290.2,0.3739]
[1725730318840,1.69662,2290.4,2290.3,0.43663]
[1725730319040,1.6226,2290.4,2290.3,0.43663]
[1725730320250,0.43664,2290.3,2290.2,0.3739]
[1725730320548,0.43668,2290.2,2289.9,4.169]
[1725730320744,0.43668,2290.2,2290.0,0.43669]
[1725730320745,1.69668,2290.2,2290.0,0.43669]
[1725730320956,0.80938,2290.1,2290.0,0.43669]
[1725730321139,0.80938,2290.1,2289.9,4.545]
[1725730321140,0.80938,2290.1,2289.9,6.12262425]
[1725730321949,0.80938,2290.1,2290.0,0.4367]
[1725730322446,0.3727,2290.1,2290.0,0.4367]
[1725730322746,1.69667,2290.2,2290.0,0.4367]
[1725730324049,1.69667,2290.2,2290.1,0.43668]
[1725730324248,3.2078,2290.6,2290.1,1.26]
[1725730324454,0.43657,2290.7,2290.6,0.43658]
[1725730324645,1.26,2290.7,2290.6,0.43658]
[1725730324847,1.69656,2290.7,2290.6,0.43658]
[1725730325045,1.69656,2290.7,2290.3,1.14092425]
[1725730325046,1.69656,2290.7,2290.5,0.43659]
[1725730325453,1.69656,2290.7,2290.6,0.3947]
[1725730325755,1.26,2290.7,2290.6,0.83128]
[1725730325951,1.69656,2290.7,2290.6,0.83128]
[1725730326251,0.43659,2290.6,2290.4,0.43661]
[1725730326448,0.43664,2290.3,2290.2,1.14092425]
[1725730326640,0.43669,2290.1,2289.9,1.57763425]
[1725730326841,1.69669,2290.1,2289.9,0.82041]
[1725730327542,0.4367,2290.0,2289.9,0.3837]
[1725730327741,5.45895,2290.0,2289.7,1.14092425]
[1725730327953,0.43674,2289.8,2289.6,1.96139425]
[1725730328151,0.43674,2289.8,2289.6,0.82047]
[1725730328355,0.80334,2289.8,2289.6,0.82047]
[1725730329060,0.3666,2289.8,2289.7,0.43676]
[1725730329448,0.80334,2289.8,2289.6,0.82046]
[1725730330353,0.3666,2289.8,2289.6,0.82046]
[1725730330548,0.3666,2289.8,2289.7,0.43676]
[1725730330852,0.80334,2289.8,2289.6,0.82046]
[1725730331554,0.3666,2289.8,2289.7,0.43676]
[1725730332252,0.43673,2289.9,2289.7,0.43676]
[1725730333551,0.43674,2289.8,2289.6,0.82046]
[1725730333754,0.81944,2289.8,2289.6,0.82046]
[1725730334159,0.3827,2289.8,2289.7,0.4349216]
[1725730335450,0.43673,2289.9,2289.7,0.4349216]
[1725730337351,0.43674,2289.8,2289.6,0.82046]
[1725730337566,0.43674,2289.8,2289.6,0.82047]
[1725730338950,0.43674,2289.8,2289.6,0.3837]
[1725730339150,0.43674,2289.8,2289.6,0.82047]
[1725730341049,0.43674,2289.8,2289.6,0.3837]
[1725730341756,0.43674,2289.8,2289.6,0.82047]
[1725730341960,0.43676,2289.7,2289.6,0.3837]
[1725730345260,1.09194,2289.6,2289.1,4.169]
[1725730345561,0.43681,2289.4,2289.3,0.3766]
[1725730345859,0.43675,2289.8,2289.5,0.43679]
[1725730346065,0.43676,2289.7,2289.6,1.1098]
[1725730346261,0.43675,2289.8,2289.6,1.1098]
[1725730346460,6.2278,2289.9,2289.6,1.1098]
[1725730346461,0.43676,2289.7,2289.6,1.1098]
[1725730348562,0.43675,2289.8,2289.6,1.1098]
[1725730350059,0.43675,2289.8,2289.6,1.54657]
[1725730350261,0.82976,2289.7,2289.6,0.7485]
[1725730350760,0.43676,2289.7,2289.6,0.7485]
[1725730352165,1.69676,2289.7,2289.6,0.7485]
[1725730354168,4.90456,2289.7,2289.6,0.7485]
[1725730355165,0.43679,2289.6,2289.2,0.3747]
[1725730355368,0.391,2289.6,2289.3,0.3701]
[1725730355567,1.6968,2289.5,2289.3,0.80693]
[1725730357261,0.43681,2289.4,2289.3,0.3701]
[1725730357458,1.69681,2289.5,2289.3,0.3701]
[1725730359569,0.43681,2289.4,2289.3,0.3701]
[1725730360270,2.07511,2289.5,2289.3,0.3701]
[1725730365877,2.07511,2289.5,2289.3,0.80693]
[1725730367059,2.07511,2289.5,2289.3,0.3701]
[1725730367581,2.07511,2289.5,2289.3,0.80693]
[1725730374869,2.07511,2289.5,2289.4,0.43681]
[1725730375068,2.07511,2289.5,2289.3,0.80692]
[1725730377480,2.46091,2289.5,2289.3,0.80692]
[1725730380181,5.66871,2289.5,2289.3,0.80692]
[1725730382171,5.66871,2289.5,2289.1,1.53382425]
[1725730382172,1.52898,2289.2,2289.1,1.14092425]
[1725730382474,1.52898,2289.2,2288.5,6.62315736]
[1725730382475,0.43688,2289.1,2288.8,0.43693]
[1725730382680,0.80427,2289.1,2288.8,0.43692]
[1725730382881,0.3674,2289.1,2288.8,0.43692]
[1725730383082,1.17797,2289.1,2288.8,0.43692]
[1725730383872,0.7411,2289.1,2288.8,0.43692]
[1725730384073,1.17797,2289.1,2288.8,0.43692]
[1725730384478,1.17797,2289.1,2288.9,0.3785]
[1725730385377,0.3674,2289.1,2288.9,0.3785]
[1725730385580,1.6196,2289.4,2289.1,0.43686]
[1725730385784,2.05642,2289.4,2289.1,0.43686]
[1725730385982,2.05642,2289.4,2289.2,0.3785]
[1725730387381,2.05641,2289.4,2289.2,0.3785]
[1725730387680,0.79641,2289.4,2289.2,0.3785]
[1725730387875,1.26,2289.3,2289.2,0.81535]
[1725730388084,1.26,2289.3,2289.2,0.3785]
[1725730392690,1.69683,2289.3,2289.2,0.3785]
[1725730392885,1.26,2289.3,2289.2,0.3785]
[1725730394487,1.26,2289.3,2289.0,1.17888]
[1725730394488,1.6345,2289.3,2289.0,0.43688]
[1725730394693,1.6345,2289.3,2289.1,0.7453]
[1725730394887,1.6345,2289.3,2289.1,1.1208]
[1725730395191,0.43685,2289.2,2289.1,1.1208]
[1725730395391,0.3581,2289.2,2289.1,1.1208]
[1725730395591,0.3581,2289.2,2289.1,5.4896]
[1725730396697,1.6345,2289.3,2289.1,5.4896]
[1725730397002,1.6345,2289.3,2289.1,1.1208]
[1725730397385,0.43685,2289.2,2289.1,0.739]
[1725730399312,0.43685,2289.2,2289.1,5.1078]
[1725730399507,0.43685,2289.2,2289.1,0.739]
[1725730399715,0.43685,2289.2,2288.9,1.14521145]
[1725730399716,0.43687,2289.1,2288.9,1.14521145]
[1725730399910,2.09117,2289.1,2288.9,1.51241145]
[1725730401607,1.26,2289.0,2288.8,0.7523]
[1725730401813,3.64471,2288.9,2288.8,0.7523]
[1725730403515,3.64471,2288.9,2288.8,0.3847]
[1725730403906,3.64471,2288.9,2288.4,1.14521145]
[1725730403907,7.5766,2288.9,2288.4,1.14521145]
[1725730404108,1.26,2288.5,2288.2,4.5492]
[1725730404314,3.2078,2288.6,2288.2,4.5492]
[1725730404315,1.69702,2288.3,2288.2,4.5492]
[1725730404504,1.69702,2288.3,2288.2,0.3802]
[1725730404707,0.43702,2288.3,2288.2,0.3802]
[1725730404906,1.69702,2288.3,2288.2,0.3802]
[1725730405125,1.26,2288.3,2288.2,0.3802]
[1725730405311,1.69702,2288.3,2288.2,0.3802]
[1725730405616,1.69702,2288.3,2288.1,0.3846]
[1725730405818,1.26,2288.3,2288.1,0.82166]
[1725730406023,1.26,2288.3,2288.1,0.3846]
[1725730407923,1.26,2288.3,2288.1,0.82166]
[1725730410627,1.26,2288.4,2288.1,0.82166]
[1725730411120,1.26,2288.4,2288.2,0.43704]
[1725730411514,1.697,2288.4,2288.3,0.3642]
[1725730412118,1.26,2288.4,2288.3,0.3642]
[1725730412923,1.697,2288.4,2288.3,0.3642]
[1725730414617,1.26,2288.4,2288.3,0.3642]
[1725730415017,1.26,2288.4,2288.3,1.17492]
[1725730415326,1.26,2288.4,2288.3,0.7379]
[1725730415520,1.26,2288.4,2288.2,0.43703]
[1725730415521,0.43708,2288.0,2287.9,4.0078]
[1725730415828,1.69708,2288.0,2287.9,0.8]
[1725730416216,3.5884,2288.2,2287.9,0.8]
[1725730416530,3.5884,2288.2,2287.9,1.5473]
[1725730416531,1.26,2288.1,2287.9,1.5473]
[1725730417421,1.69706,2288.1,2287.9,1.5473]
[1725730417617,1.69706,2288.1,2287.9,1.1609]
[1725730417618,1.26,2288.1,2287.9,1.1609]
[1725730417818,1.6441,2288.0,2287.9,0.8]
[1725730419321,2.08118,2288.0,2287.9,0.8]
[1725730420416,1.26,2288.0,2287.9,0.8]
[1725730420618,1.69708,2288.0,2287.9,0.8]
[1725730420818,1.26,2288.0,2287.9,0.8]
[1725730421315,6.06748,2288.0,2287.9,0.8]
[1725730422519,1.69708,2288.0,2287.9,0.8]
[1725730423715,6.06748,2288.0,2287.9,0.8]
[1725730425429,1.69708,2288.0,2287.9,0.8]
[1725730425623,6.06748,2288.0,2287.9,0.8]
[1725730425829,1.69708,2288.0,2287.9,0.8]
[1725730426726,6.06748,2288.0,2287.9,0.8]
[1725730427126,1.69708,2288.0,2287.9,0.8]
[1725730428529,2.78979,2288.0,2287.9,0.8]
[1725730428918,7.16019,2288.0,2287.9,0.8]
[1725730432737,2.78979,2288.0,2287.9,0.8]
[1725730438535,7.16019,2288.0,2287.9,0.8]
[1725730446247,3.2078,2288.2,2288.0,0.43707]
[1725730446541,4.4678,2288.2,2288.1,1.53806]
[1725730446848,4.4678,2288.2,2288.1,5.90846]
[1725730447344,4.4678,2288.2,2288.1,5.4714]
[1725730447849,4.4678,2288.2,2288.1,5.90846]
[1725730448044,3.2078,2288.9,2288.5,0.43698]
[1725730448342,3.64472,2288.9,2288.6,0.7239]
[1725730448547,1.26,2288.7,2288.6,1.16087]
[1725730448737,1.26,2288.8,2288.7,0.43694]
[1725730449138,1.26,2288.8,2288.7,4.80574]
[1725730449536,1.26,2288.8,2288.7,4.3688]
[1725730450040,1.69693,2288.8,2288.6,0.7239]
[1725730450243,3.2078,2288.9,2288.6,0.7239]
[1725730450244,1.69695,2288.7,2288.6,0.7239]
[1725730451546,1.26,2288.8,2288.6,5.0935]
[1725730451751,1.26,2288.8,2288.7,4.80653]
[1725730452050,3.02,2289.1,2288.7,4.7578]
[1725730452348,3.02,2289.1,2288.9,0.4369]
[1725730452545,3.02,2289.1,2289.0,0.3694]
[1725730452933,3.02,2289.1,2289.0,0.80629]
[1725730453738,3.02,2289.3,2289.2,0.43685]
[1725730453940,3.02,2289.3,2289.1,0.7604]
[1725730454139,3.02,2289.3,2289.2,0.43685]
[1725730454340,3.02,2289.3,2289.1,5.56526]
[1725730454538,3.02,2289.3,2289.2,0.43685]
[1725730454743,3.02,2289.3,2289.1,5.56526]
[1725730454945,3.02,2289.3,2289.2,0.43685]
[1725730455353,3.02,2289.3,2289.2,4.80485]
[1725730456042,3.02,2289.3,2289.1,1.19726]
[1725730456444,3.45684,2289.3,2289.1,0.7604]
[1725730457648,3.45684,2289.3,2289.1,1.19727]
[1725730457850,3.02,2289.3,2289.1,1.19727]
[1725730459748,3.45684,2289.3,2289.1,1.19727]
[1725730461640,0.43685,2289.2,2289.1,0.7604]
[1725730461839,0.80905,2289.2,2289.1,0.7604]
[1725730462752,0.80905,2289.2,2289.0,0.3694]
[1725730463142,3.02,2289.1,2288.7,0.80873]
[1725730463342,3.45688,2289.1,2288.8,0.80403]
[1725730463549,0.43689,2289.0,2288.8,0.3671]
[1725730465459,3.02,2289.1,2288.8,0.3671]
[1725730465752,0.43691,2288.9,2288.7,1.17364]
[1725730465943,0.4369,2289.0,2288.7,1.55714]
[1725730466439,0.43692,2288.9,2288.7,1.1202]
[1725730466845,0.43692,2288.9,2288.7,1.55714]
[1725730467041,0.4369,2289.0,2288.7,1.55714]
[1725730467355,0.43691,2288.9,2288.7,1.55714]
[1725730467755,0.4369,2289.0,2288.7,1.55714]
[1725730468254,0.43691,2288.9,2288.7,1.55714]
[1725730469050,0.43693,2288.8,2288.7,1.1202]
[1725730469255,0.81003,2288.8,2288.7,1.1202]
[1725730469651,0.81003,2288.8,2288.7,0.3835]
[1725730471147,0.81003,2288.8,2288.5,1.18417]
[1725730471351,0.81003,2288.8,2288.6,0.43696]
[1725730473955,2.07003,2288.8,2288.6,0.43696]
[1725730474257,0.43698,2288.5,2288.4,3.2078]
[1725730474557,0.43698,2288.5,2288.2,0.3806]
[1725730474762,0.3823,2288.4,2288.3,0.43702]
[1725730477256,0.3661,2288.9,2288.8,0.43693]
[1725730477561,0.43696,2288.7,2288.5,0.43698]
[1725730477748,0.43696,2288.7,2288.4,0.3728]
[1725730478055,0.43697,2288.6,2288.5,0.3565]
[1725730478449,0.43694,2288.8,2288.6,0.43695]
[1725730478653,0.43694,2288.8,2288.7,0.43695]
[1725730478847,0.43694,2288.8,2288.7,0.80975]
[1725730479250,1.19862,2288.9,2288.7,0.80975]
[1725730479450,0.43693,2288.8,2288.6,0.82045]
[1725730479652,0.43693,2288.8,2288.7,0.43695]
[1725730480551,0.43693,2288.8,2288.6,0.82045]
[1725730481459,3.02,2288.7,2288.1,4.5543]
[1725730481663,3.02,2288.7,2288.4,0.3891]
[1725730481959,0.368,2288.6,2288.5,0.43698]
[1725730482157,0.368,2288.6,2288.5,4.80658]
[1725730482357,0.43696,2288.7,2288.5,5.57158]
[1725730482563,0.43696,2288.7,2288.6,0.43697]
[1725730482860,0.79593,2288.8,2288.6,0.43697]
[1725730483456,0.43695,2288.7,2288.5,1.20197]
[1725730483964,0.43695,2288.7,2288.6,0.43697]
[1725730485061,0.43695,2288.7,2288.5,1.20197]
[1725730487360,0.43695,2288.7,2288.1,4.60604]
[1725730487361,0.43703,2288.3,2288.1,4.60604]
[1725730487564,0.43704,2288.2,2288.1,0.81805]
[1725730488764,0.43704,2288.2,2288.0,0.7575]
[1725730488965,0.79796,2288.1,2288.0,0.7575]
[1725730489568,0.3892,2288.2,2288.0,0.7575]
[1725730489765,0.43703,2288.3,2288.1,0.365]
[1725730489964,0.43703,2288.3,2288.1,0.80204]
[1725730490361,0.43703,2288.3,2288.2,0.43704]
[1725730490967,0.43703,2288.3,2288.1,0.80205]
[1725730491564,0.43704,2288.2,2288.1,0.80205]
[1725730491974,0.43703,2288.3,2288.1,0.80205]
[1725730492155,0.3609,2288.4,2288.1,0.80205]
[1725730492355,0.43702,2288.3,2288.1,0.80205]
[1725730492759,0.43704,2288.2,2288.1,0.80205]
[1725730492961,0.43704,2288.2,2287.9,0.8]
[1725730493168,0.43704,2288.2,2288.0,1.1421]
[1725730493363,0.43704,2288.2,2288.1,0.43706]
[1725730494068,0.3609,2288.4,2288.1,0.43706]
[1725730494069,0.43704,2288.3,2288.1,0.43706]
[1725730494279,0.43706,2288.1,2288.0,1.57917]
[1725730494565,0.43706,2288.2,2288.0,1.57917]
[1725730494771,3.02,2288.3,2288.0,1.57917]
[1725730494772,0.43706,2288.1,2288.0,1.57917]
[1725730494961,0.82676,2288.1,2288.0,1.57917]
[1725730495158,0.82676,2288.1,2288.0,0.80797]
[1725730495671,0.43708,2288.0,2287.9,1.2371]
[1725730496660,0.82677,2288.1,2287.9,0.8]
[1725730496865,0.82677,2288.1,2287.9,1.23708]
[1725730497060,0.82677,2288.1,2288.0,0.80628]
[1725730497770,0.43708,2288.0,2287.9,1.23709]
[1725730497970,10.5982,2288.0,2287.7,0.43713]
[1725730498270,0.43711,2287.9,2287.6,1.1158]
[1725730498470,7.39869,2288.0,2287.8,0.43712]
[1725730498666,0.43711,2287.9,2287.7,0.43713]
[1725730498975,0.43712,2287.9,2287.7,0.43713]
[1725730499272,0.3762,2287.8,2287.7,0.43713]
[1725730499870,0.81333,2287.8,2287.6,1.1158]
[1725730500372,0.3762,2287.8,2287.7,0.43714]
[1725730501273,0.7338,2288.0,2287.9,0.4371]
[1725730501464,0.3825,2288.0,2287.9,0.4371]
[1725730501669,3.4025,2288.0,2287.6,1.1158]
[1725730501873,3.83959,2288.0,2287.6,1.1158]
[1725730502169,3.83959,2288.0,2287.8,0.43711]
[1725730502475,3.4025,2288.0,2287.9,0.4371]
[1725730503168,0.3825,2288.0,2287.9,0.4371]
[1725730503369,0.43706,2288.1,2288.0,0.43707]
[1725730503572,0.3892,2288.1,2288.0,0.43707]
[1725730504074,3.4092,2288.1,2288.0,0.43707]
[1725730504470,3.84627,2288.1,2287.9,0.43709]
[1725730504669,0.3892,2288.1,2288.0,0.43708]
[1725730505568,0.43694,2288.8,2288.1,1.09266]
[1725730505768,4.157,2288.9,2288.5,0.43697]
[1725730505964,3.45694,2288.8,2288.5,0.43697]
[1725730506778,0.43695,2288.7,2288.5,0.43697]
[1725730507181,0.3807,2288.6,2288.5,0.43697]
[1725730507772,3.02,2288.8,2288.6,0.43695]
[1725730507773,3.4007,2288.8,2288.6,0.43695]
[1725730507972,0.3807,2288.8,2288.6,0.43695]
[1725730508474,0.81763,2288.8,2288.5,0.43698]
[1725730508674,0.3807,2288.8,2288.6,0.43696]
[1725730508981,3.83763,2288.8,2288.5,0.43697]
[1725730509179,0.43699,2288.5,2288.2,0.43703]
[1725730509376,0.7542,2288.4,2288.2,0.43703]
[1725730509570,1.1106,2288.4,2288.3,0.43702]
[1725730509877,1.1106,2288.4,2288.2,0.43703]
[1725730510380,1.1106,2288.4,2288.3,0.43702]
[1725730510564,1.1106,2288.4,2288.2,0.43703]
[1725730510770,1.1106,2288.4,2288.1,4.169]
[1725730510970,1.1106,2288.4,2288.0,1.1431]
[1725730511777,1.1106,2288.4,2288.2,0.43703]
[1725730512774,1.1106,2288.4,2288.0,1.1431]
[1725730512775,1.1106,2288.4,2288.3,0.43702]
[1725730513279,1.54761,2288.4,2288.0,1.1431]
[1725730513473,1.54761,2288.4,2288.1,0.43704]
[1725730513974,0.43703,2288.3,2288.1,0.43704]
[1725730514280,1.54762,2288.4,2288.1,0.43705]
[1725730515677,1.54762,2288.4,2288.0,1.18507]
[1725730515678,0.43704,2288.2,2288.0,1.18507]
[1725730515878,3.45703,2288.3,2288.0,1.18507]
[1725730516276,0.43705,2288.2,2288.0,1.18507]
[1725730516676,3.45704,2288.3,2288.0,1.18507]
[1725730516873,0.43704,2288.2,2288.0,0.43707]
[1725730517381,0.43704,2288.2,2287.8,1.1064]
[1725730517588,0.43704,2288.2,2288.0,0.43707]
[1725730518477,0.43704,2288.2,2287.9,0.43708]
[1725730519286,3.02,2288.3,2287.6,8.52201145]
[1725730519287,3.02,2288.1,2287.6,7.3768]
[1725730519584,3.02,2288.1,2288.0,0.43708]
[1725730519889,3.02,2288.1,2287.9,0.43709]
[1725730519890,7.82746,2288.1,2287.9,0.43709]
[1725730520182,0.3708,2288.0,2287.9,0.43709]
[1725730522791,0.43705,2288.2,2288.0,0.43707]
[1725730522976,0.3694,2288.2,2288.0,0.43707]
[1725730523181,0.43706,2288.1,2288.0,0.43707]
[1725730526280,0.80645,2288.2,2288.1,0.43706]
[1725730526679,0.80645,2288.2,2288.0,0.43707]
[1725730526879,0.80645,2288.2,2288.1,1.58316]
[1725730527987,0.3694,2288.2,2288.1,1.58316]
[1725730528491,0.43708,2288.1,2287.9,0.43709]
[1725730528675,0.43708,2288.0,2287.9,0.43709]
[1725730528988,0.4371,2287.9,2287.8,0.3897]
[1725730529192,0.4371,2287.9,2287.7,0.43712]
[1725730529193,3.82241,2287.9,2287.7,0.43712]
[1725730529787,0.43712,2287.8,2287.7,0.43712]
[1725730530286,3.82241,2287.9,2287.7,0.43714]
[1725730530883,0.43712,2287.8,2287.7,0.43714]
[1725730531085,3.3853,2288.1,2287.7,3.2078]
[1725730531392,0.4371,2287.9,2287.8,0.43711]
[1725730535094,0.82479,2288.0,2287.8,0.43711]
[1725730536403,0.4371,2287.9,2287.8,0.43711]
[1725730537286,1.20509,2288.0,2287.8,0.43711]
[1725730538194,0.82479,2288.0,2287.9,0.4371]
[1725730538381,0.82479,2288.0,2287.8,0.4371]
[1725730538893,0.82479,2288.0,2287.9,0.4371]
[1725730539289,5.19519,2288.0,2287.9,0.4371]
[1725730539991,6.45519,2288.0,2287.9,0.4371]
[1725730541789,2.08479,2288.0,2287.9,0.4371]
[1725730542686,1.6477,2288.0,2287.9,0.4371]
[1725730543086,2.08478,2288.0,2287.9,0.4371]
[1725730546501,2.47269,2288.0,2287.9,0.4371]
[1725730548196,2.0356,2288.0,2287.9,0.4371]
[1725730548596,2.47268,2288.0,2287.9,0.4371]
[1725730548799,2.0356,2288.0,2287.9,0.4371]
[1725730549403,2.47268,2288.0,2287.9,0.4371]
[1725730550604,1.21268,2288.0,2287.9,0.4371]
[1725730550798,2.47268,2288.0,2287.9,0.4371]